bitfinex-derivatives/quotes_BNBF0:USTF0_20250521
["timestamp","ask_amount","ask_price","bid_price","bid_amount"]
[1747849824019,0.99997268,663.61,662.15,0.26252956]
[1747849824213,0.99997268,663.6,662.15,0.26252956]
[1747849824422,0.99997268,663.59,662.15,0.26252956]
[1747849824614,0.99997268,663.58,662.15,0.26252956]
[1747849824813,0.99997268,663.57,662.32,0.36894879]
[1747849825022,0.99997268,663.56,662.32,0.36894879]
[1747849825221,0.98664332,663.58,662.32,0.36894879]
[1747849825419,0.99977958,663.57,662.32,0.36894879]
[1747849825615,0.99977958,663.56,662.32,0.36894879]
[1747849825919,1.9864229,663.55,662.32,0.36894879]
[1747849826122,0.98664332,663.55,662.32,0.36894879]
[1747849827220,0.98664332,663.68,662.48,0.36894879]
[1747849827414,0.99954948,663.67,662.48,0.36894879]
[1747849827615,0.99954948,663.66,662.48,0.36894879]
[1747849827918,0.99954948,663.65,662.48,0.36894879]
[1747849828115,0.99954948,663.64,662.48,0.36894879]
[1747849828323,0.99954948,663.63,662.48,0.36894879]
[1747849828618,0.99954948,663.62,662.48,0.36894879]
[1747849828816,0.99954948,663.61,662.48,0.36894879]
[1747849829018,0.99954948,663.6,662.48,0.36894879]
[1747849829219,0.99954948,663.59,662.48,0.36894879]
[1747849829417,0.99954948,663.58,662.48,0.36894879]
[1747849829616,0.99954948,663.57,662.48,0.36894879]
[1747849829922,0.98664332,663.62,662.48,0.36894879]
[1747849830116,0.9987234,663.61,662.66,0.36894879]
[1747849830320,1.10744846,663.8,662.66,0.36894879]
[1747849830321,0.9987234,663.6,662.66,0.36894879]
[1747849830520,0.9987234,663.59,662.66,0.36894879]
[1747849830721,0.9987234,663.58,662.66,0.36894879]
[1747849830922,0.9987234,663.57,662.66,0.36894879]
[1747849831224,0.9987234,663.56,662.66,0.36894879]
[1747849831423,0.99163651,663.56,662.66,0.36894879]
[1747849832824,1.10744846,664.0,662.7,0.36894879]
[1747849833024,1.42589972,663.99,662.7,0.36894879]
[1747849833320,1.42589972,663.98,662.7,0.36894879]
[1747849833522,1.42589972,663.97,662.7,0.36894879]
[1747849833724,2.41747536,663.96,662.7,0.36894879]
[1747849833924,1.42589972,663.95,662.7,0.36894879]
[1747849834126,0.99873081,663.94,662.7,0.36894879]
[1747849834318,0.99864535,663.93,662.7,0.36894879]
[1747849834524,0.99864535,663.92,662.7,0.36894879]
[1747849834722,0.99864535,663.91,662.67,0.36894879]
[1747849834923,0.99864535,663.9,662.67,0.36894879]
[1747849835119,0.99864535,663.89,662.67,0.36894879]
[1747849835324,0.99864535,663.88,662.67,0.36894879]
[1747849835524,0.99864535,663.87,662.67,0.36894879]
[1747849835723,0.99864535,663.86,662.67,0.36894879]
[1747849835925,0.99864535,663.85,662.67,0.36894879]
[1747849836123,0.99864535,663.84,662.67,0.36894879]
[1747849836326,0.99864535,663.83,662.67,0.36894879]
[1747849836519,0.99864535,663.82,662.67,0.36894879]
[1747849836723,0.99864535,663.81,662.67,0.36894879]
[1747849837023,0.99864535,663.8,662.67,0.36894879]
[1747849837227,0.99864535,663.79,662.54,0.36894879]
[1747849837424,0.99864535,663.78,662.54,0.36894879]
[1747849837622,0.99864535,663.77,662.54,0.36894879]
[1747849837826,0.99832339,663.76,662.54,0.36894879]
[1747849838027,0.9983578,663.75,662.54,0.36894879]
[1747849838227,0.99157564,663.8,662.54,0.36894879]
[1747849838428,0.99846881,663.79,662.54,0.36894879]
[1747849838726,0.99157564,663.78,662.54,0.36894879]
[1747849840325,0.99157564,663.77,662.73,0.36894879]
[1747849841629,1.10744846,664.0,662.73,0.36894879]
[1747849841928,0.9977577,663.99,662.73,0.36894879]
[1747849842127,0.9977577,663.98,662.73,0.36894879]
[1747849842327,0.9977577,663.97,662.73,0.36894879]
[1747849842528,0.9977577,663.96,662.73,0.36894879]
[1747849842723,0.9977577,663.95,662.73,0.36894879]
[1747849842926,0.9977577,663.94,662.73,0.36894879]
[1747849843124,0.9977577,663.93,662.73,0.36894879]
[1747849843423,0.9977577,663.92,662.58,0.36894879]
[1747849843627,0.9977577,663.91,662.58,0.36894879]
[1747849843823,0.99034775,663.95,662.58,0.36894879]
[1747849844030,0.99740341,663.94,662.58,0.36894879]
[1747849844226,0.99740341,663.93,662.58,0.36894879]
[1747849844423,0.99034775,663.95,662.58,0.36894879]
[1747849844626,1.98733519,663.94,662.58,0.36894879]
[1747849844823,0.99703377,663.93,662.58,0.36894879]
[1747849845025,0.99034775,663.94,662.58,0.36894879]
[1747849845230,0.99690309,663.93,662.58,0.36894879]
[1747849845429,0.99034775,663.94,662.58,0.36894879]
[1747849846131,0.99034775,663.93,662.72,0.36894879]
[1747849847431,1.10744846,664.14,662.72,0.36894879]
[1747849847625,0.9967698,664.13,662.72,0.36894879]
[1747849847825,0.9967698,664.12,662.72,0.36894879]
[1747849848129,0.9967698,664.11,662.72,0.36894879]
[1747849848330,0.9967698,664.1,662.72,0.36894879]
[1747849848530,0.9967698,664.09,662.72,0.36894879]
[1747849848733,0.9967698,664.08,662.72,0.36894879]
[1747849848930,0.9967698,664.07,662.72,0.36894879]
[1747849849129,0.9967698,664.06,662.72,0.36894879]
[1747849849326,0.9967698,664.05,662.72,0.36894879]
[1747849849531,0.9967698,664.04,662.79,0.36894879]
[1747849849732,0.9967698,664.03,662.79,0.36894879]
[1747849849927,0.9891318,664.07,662.79,0.36894879]
[1747849849928,0.9967698,664.02,662.79,0.36894879]
[1747849850133,0.9967698,664.01,662.79,0.36894879]
[1747849850334,0.9967698,664.0,662.79,0.36894879]
[1747849850537,0.9967698,663.99,662.79,0.36894879]
[1747849850834,0.9967698,663.98,662.79,0.36894879]
[1747849851034,0.9967698,663.97,662.79,0.36894879]
[1747849851237,0.9967698,663.96,662.79,0.36894879]
[1747849851430,0.9967698,663.95,662.79,0.36894879]
[1747849851628,0.9967698,663.94,662.79,0.36894879]
[1747849851834,0.9891318,663.98,662.79,0.36894879]
[1747849852132,0.99553608,663.97,662.79,0.36894879]
[1747849852335,0.99553608,663.96,662.68,0.26225752]
[1747849852536,0.99553608,663.95,662.68,0.26225752]
[1747849852834,0.9891318,663.97,662.68,0.26225752]
[1747849853036,0.99595459,663.96,662.68,0.26225752]
[1747849853239,1.98508639,663.95,662.68,0.26225752]
[1747849853438,0.99595459,663.94,662.68,0.26225752]
[1747849853636,0.99595459,663.93,662.68,0.26225752]
[1747849853836,0.99499025,663.92,662.68,0.26225752]
[1747849854038,0.99499025,663.91,662.68,0.26225752]
[1747849854234,0.99499025,663.9,662.68,0.26225752]
[1747849854436,0.99499025,663.89,662.68,0.26225752]
[1747849854637,0.99499025,663.88,662.68,0.26225752]
[1747849854837,0.99499025,663.87,662.68,0.26225752]
[1747849855038,0.99499025,663.86,662.68,0.26225752]
[1747849855238,0.99499025,663.85,662.68,0.26225752]
[1747849855432,0.99499025,663.84,662.68,0.26225752]
[1747849855635,0.9891318,663.88,662.68,0.26225752]
[1747849855836,0.99460383,663.87,662.68,0.26225752]
[1747849856038,0.99460383,663.86,662.68,0.26225752]
[1747849856239,0.99460383,663.85,662.68,0.26225752]
[1747849856437,1.98373563,663.84,662.38,0.36894879]
[1747849856735,0.99460383,663.83,662.39,0.36894879]
[1747849856935,0.99460383,663.83,662.68,0.26229113]
[1747849857137,0.9891318,663.84,662.39,0.36894879]
[1747849857737,0.9891318,663.83,662.39,0.36894879]
[1747849857941,0.9891318,663.83,662.4,0.26236825]
[1747849858837,0.9891318,663.82,662.4,0.26236825]
[1747849859445,0.9891318,663.82,662.35,0.36894879]
[1747849860144,1.10744846,664.17,662.35,0.36894879]
[1747849860340,0.99475081,664.16,662.36,0.26233067]
[1747849860541,0.99475081,664.15,662.36,0.26233067]
[1747849860738,0.99475081,664.14,662.36,0.26233067]
[1747849860943,0.99475081,664.13,662.36,0.26233067]
[1747849861144,1.10744846,664.17,662.36,0.26233067]
[1747849861743,1.10744846,664.43,662.79,0.36894879]
[1747849862045,0.98761861,664.16,662.79,0.36894879]
[1747849862747,1.10744846,664.43,662.79,0.36894879]
[1747849862944,0.99410316,664.42,662.79,0.36894879]
[1747849863142,0.99410316,664.41,662.79,0.36894879]
[1747849863344,0.99410316,664.4,662.79,0.36894879]
[1747849863543,0.99410316,664.39,662.79,0.36894879]
[1747849863745,0.99410316,664.38,662.79,0.36894879]
[1747849863945,0.99410316,664.37,662.79,0.36894879]
[1747849864248,0.99410316,664.36,662.79,0.36894879]
[1747849864444,0.99410316,664.35,662.79,0.36894879]
[1747849864641,0.99410316,664.34,662.79,0.36894879]
[1747849864847,0.99410316,664.33,662.79,0.36894879]
[1747849865145,0.99410316,664.32,662.79,0.36894879]
[1747849865344,0.99410316,664.31,662.79,0.36894879]
[1747849865544,1.97571027,664.3,662.79,0.36894879]
[1747849865746,0.99410316,664.29,662.79,0.36894879]
[1747849866043,0.99410316,664.28,662.79,0.36894879]
[1747849866243,0.99410316,664.27,662.79,0.36894879]
[1747849866442,0.99410316,664.26,662.79,0.36894879]
[1747849866642,0.98160711,664.3,662.53,0.26219528]
[1747849866643,0.99410316,664.25,662.76,0.36894879]
[1747849866843,0.99410316,664.24,662.76,0.36894879]
[1747849867044,0.99410316,664.23,662.76,0.36894879]
[1747849867246,0.99410316,664.22,662.76,0.36894879]
[1747849867447,1.97571027,664.21,662.76,0.36894879]
[1747849867647,0.99410316,664.2,662.76,0.36894879]
[1747849867848,0.99410316,664.19,662.76,0.36894879]
[1747849868046,0.99410316,664.18,662.76,0.36894879]
[1747849868247,0.99410316,664.17,662.76,0.36894879]
[1747849868448,0.99410316,664.16,662.76,0.36894879]
[1747849868649,0.99410316,664.15,662.76,0.36894879]
[1747849868850,0.99410316,664.14,662.76,0.36894879]
[1747849869051,0.99410316,664.13,662.62,0.26221208]
[1747849869348,0.99410316,664.12,662.62,0.26221208]
[1747849869550,0.99410316,664.11,662.62,0.26221208]
[1747849869748,0.99410316,664.1,662.62,0.26221208]
[1747849869945,0.99410316,664.09,662.62,0.26221208]
[1747849870147,0.99410316,664.08,662.62,0.26221208]
[1747849870352,0.99410316,664.07,662.62,0.26221208]
[1747849870546,0.99410316,664.06,662.62,0.26221208]
[1747849870751,0.99410316,664.05,662.62,0.26221208]
[1747849870966,0.98160711,664.08,662.62,0.26221208]
[1747849871151,0.99323881,664.07,662.62,0.26221208]
[1747849871352,0.99323881,664.06,662.51,0.36894879]
[1747849871552,0.99323881,664.05,662.51,0.36894879]
[1747849871750,0.98160711,664.08,662.62,0.26223085]
[1747849871954,0.98160711,664.08,662.51,0.36894879]
[1747849872154,0.99334862,664.07,662.51,0.36894879]
[1747849872352,0.98160711,664.04,662.41,0.36894879]
[1747849873154,0.98160711,664.04,662.42,0.26229904]
[1747849873756,0.98160711,664.03,662.42,0.26229904]
[1747849874358,0.98160711,664.03,662.41,0.36894879]
[1747849874661,0.98160711,664.03,662.42,0.26221899]
[1747849875458,0.98160711,664.35,662.86,0.36894879]
[1747849875660,0.9950956,664.34,662.86,0.36894879]
[1747849875854,0.9950956,664.33,662.86,0.36894879]
[1747849876059,0.9950956,664.32,662.86,0.36894879]
[1747849876261,0.99518314,664.31,662.86,0.36894879]
[1747849876460,0.99518314,664.3,662.86,0.36894879]
[1747849876661,0.99518314,664.29,662.86,0.36894879]
[1747849876857,0.99518314,664.28,662.86,0.36894879]
[1747849877062,0.98160711,664.29,662.86,0.36894879]
[1747849877563,0.99562325,664.28,662.86,0.36894879]
[1747849877763,0.98160711,664.29,662.86,0.36894879]
[1747849877966,0.99564692,664.28,662.86,0.36894879]
[1747849878165,0.99558617,664.27,662.86,0.36894879]
[1747849878365,0.99558617,664.26,662.84,0.36894879]
[1747849878560,0.99558617,664.25,662.84,0.36894879]
[1747849878757,0.99558617,664.24,662.84,0.36894879]
[1747849878958,0.99558617,664.23,662.84,0.36894879]
[1747849879162,1.97719328,664.22,662.84,0.36894879]
[1747849879362,0.99558617,664.21,662.84,0.36894879]
[1747849879565,0.98160711,664.22,662.84,0.36894879]
[1747849880865,1.10744846,664.55,663.03,0.36894879]
[1747849881163,1.42241589,664.54,663.03,0.36894879]
[1747849881365,1.42241589,664.53,663.03,0.36894879]
[1747849881559,1.42241589,664.52,663.03,0.36894879]
[1747849881761,2.40413058,664.51,663.03,0.36894879]
[1747849881964,1.42280577,664.5,663.03,0.36894879]
[1747849882170,0.99686586,664.49,663.03,0.36894879]
[1747849882358,0.99686586,664.48,663.03,0.36894879]
[1747849882561,0.99686586,664.47,663.03,0.36894879]
[1747849882766,0.99686586,664.46,663.03,0.36894879]
[1747849882968,0.99686586,664.45,663.03,0.36894879]
[1747849883267,0.99686586,664.44,663.03,0.36894879]
[1747849883468,0.99686586,664.43,663.04,0.36894879]
[1747849883667,0.99686586,664.42,663.04,0.36894879]
[1747849883862,0.99686586,664.41,663.04,0.36894879]
[1747849884062,0.99686586,664.4,663.04,0.36894879]
[1747849884263,0.99686586,664.39,663.04,0.36894879]
[1747849884469,0.99686586,664.38,663.04,0.36894879]
[1747849884670,0.99686586,664.37,663.04,0.36894879]
[1747849884871,0.99686586,664.36,663.04,0.36894879]
[1747849885072,0.99686586,664.35,663.04,0.36894879]
[1747849885270,0.99686586,664.34,663.04,0.36894879]
[1747849885470,0.99686586,664.33,663.04,0.36894879]
[1747849885772,0.99686586,664.32,663.04,0.36894879]
[1747849885971,0.99686586,664.31,663.04,0.36894879]
[1747849886172,0.99686586,664.3,663.04,0.36894879]
[1747849886371,0.99686586,664.29,663.04,0.36894879]
[1747849886565,0.99686586,664.28,663.04,0.36894879]
[1747849886765,0.99686586,664.27,663.07,0.36894879]
[1747849887073,0.99756644,664.26,663.07,0.36894879]
[1747849887373,0.99778018,664.25,663.07,0.36894879]
[1747849887573,0.99778018,664.24,663.07,0.36894879]
[1747849887773,0.99778018,664.23,663.07,0.36894879]
[1747849887974,0.998096,664.22,663.07,0.36894879]
[1747849888170,0.998096,664.21,663.07,0.36894879]
[1747849888371,0.998096,664.2,663.07,0.36894879]
[1747849888572,0.998096,664.19,663.07,0.36894879]
[1747849888773,0.998096,664.18,663.07,0.36894879]
[1747849889071,0.998096,664.17,663.07,0.36894879]
[1747849889270,0.998096,664.16,663.07,0.36894879]
[1747849889574,0.998096,664.15,663.07,0.36894879]
[1747849889771,0.998096,664.14,662.98,0.36894879]
[1747849889971,0.998096,664.13,662.98,0.36894879]
[1747849890179,0.998096,664.12,662.98,0.36894879]
[1747849890382,0.998096,664.11,662.98,0.36894879]
[1747849890581,0.998096,664.1,662.98,0.36894879]
[1747849890772,0.9992229,664.09,662.98,0.36894879]
[1747849890975,1.98054771,664.08,662.98,0.36894879]
[1747849891175,0.98132481,664.08,662.98,0.36894879]
[1747849892081,0.99969772,664.07,662.98,0.36894879]
[1747849892280,0.98132481,664.08,662.98,0.36894879]
[1747849892480,1.98104396,664.07,663.04,0.36894879]
[1747849892779,0.98132481,664.07,663.04,0.36894879]
[1747849893982,1.00058626,664.06,663.04,0.36894879]
[1747849894180,1.00058626,664.05,663.04,0.36894879]
[1747849894379,1.00058626,664.04,663.04,0.36894879]
[1747849894582,0.98132481,664.06,663.04,0.36894879]
[1747849895883,0.98132481,664.05,663.0,0.36894879]
[1747849896883,0.98132481,664.29,663.0,0.36894879]
[1747849897184,1.00042467,664.28,663.0,0.36894879]
[1747849897384,1.00042467,664.27,663.0,0.36894879]
[1747849897582,1.00042467,664.26,663.0,0.36894879]
[1747849897777,1.00042467,664.25,663.0,0.36894879]
[1747849897979,1.00054917,664.24,663.0,0.36894879]
[1747849898284,0.98132481,664.29,663.0,0.36894879]
[1747849898485,1.00049985,664.28,663.0,0.36894879]
[1747849898684,1.00049985,664.27,663.0,0.36894879]
[1747849898890,0.98132481,664.28,663.22,0.36894879]
[1747849899078,1.00044838,664.27,663.22,0.36894879]
[1747849899284,0.98132481,664.28,663.22,0.36894879]
[1747849899481,1.00034155,664.27,663.22,0.36894879]
[1747849899683,1.00035203,664.26,663.22,0.36894879]
[1747849899881,0.98132481,664.28,663.22,0.36894879]
[1747849900085,1.00032399,664.27,663.22,0.36894879]
[1747849900281,1.00032399,664.26,663.22,0.36894879]
[1747849900484,0.98132481,664.25,663.22,0.36894879]
[1747849900883,1.00018517,664.24,663.22,0.36894879]
[1747849901086,1.00018517,664.23,663.22,0.36894879]
[1747849901289,0.98132481,664.25,663.22,0.36894879]
[1747849901486,1.00014642,664.24,663.22,0.36894879]
[1747849901784,1.00014642,664.23,663.12,0.26210543]
[1747849901988,1.00014642,664.22,663.12,0.26210543]
[1747849902189,0.98132481,664.24,663.12,0.26210543]
[1747849902389,1.00018079,664.23,663.12,0.26210543]
[1747849902683,0.98132481,664.24,663.12,0.26210543]
[1747849902889,1.00018221,664.23,663.12,0.26210543]
[1747849903085,0.98132481,664.24,663.12,0.26210543]
[1747849903282,0.98132481,664.22,663.12,0.26210543]
[1747849903792,1.00013273,664.21,663.12,0.26210543]
[1747849903990,1.00007111,664.2,663.12,0.26210543]
[1747849904182,1.00007111,664.19,663.12,0.26210543]
[1747849904387,1.00007111,664.18,663.12,0.26210543]
[1747849904588,1.00007111,664.17,663.12,0.63105422]
[1747849904789,1.00001296,664.16,663.12,0.63105422]
[1747849905087,0.98132481,664.18,663.12,0.63105422]
[1747849905291,1.00005859,664.17,663.12,0.63105422]
[1747849905590,1.00005859,664.16,663.12,0.63105422]
[1747849905790,1.9813834,664.15,663.12,0.63105422]
[1747849905990,1.00005859,664.14,663.12,0.63105422]
[1747849906193,1.00005859,664.13,663.12,0.63105422]
[1747849906390,1.00005859,664.12,663.12,0.63105422]
[1747849906691,1.00005859,664.11,663.12,0.63105422]
[1747849906885,1.00005859,664.1,663.12,0.63105422]
[1747849907087,1.00005859,664.09,663.12,0.63105422]
[1747849907288,1.00005859,664.08,663.12,0.63105422]
[1747849907485,1.00005859,664.07,663.12,0.36894879]
[1747849907688,1.00005859,664.06,663.12,0.26214393]
[1747849907888,1.00005859,664.05,663.12,0.26214393]
[1747849908084,0.98132481,664.09,663.12,0.26214393]
[1747849908591,0.98132481,664.08,663.12,0.26214393]
[1747849909093,0.99955346,664.07,663.12,0.26214393]
[1747849909291,0.99955346,664.06,663.12,0.26214393]
[1747849909487,0.99955346,664.05,663.12,0.26214393]
[1747849909791,0.99955346,664.04,663.12,0.26214393]
[1747849909991,0.98132481,664.04,663.12,0.26214393]
[1747849910387,0.98132481,664.04,663.02,0.36894879]
[1747849910885,0.98132481,664.03,663.02,0.36894879]
[1747849911692,0.98132481,664.03,663.03,0.26220615]
[1747849912197,0.99971914,664.02,663.03,0.26220615]
[1747849912394,0.98132481,664.02,663.03,0.26220615]
[1747849913199,0.98132481,664.01,663.03,0.26220615]
[1747849913397,0.98132481,664.01,662.89,0.36894879]
[1747849914592,0.98132481,664.01,662.96,0.36894879]
[1747849914897,0.98132481,664.0,662.96,0.36894879]
[1747849915497,0.98132481,663.99,662.96,0.36894879]
[1747849916899,1.10744846,664.35,662.96,0.36894879]
[1747849917199,1.42987334,664.34,663.03,0.36894879]
[1747849917397,1.42987334,664.33,663.03,0.36894879]
[1747849917602,1.42988663,664.32,663.03,0.36894879]
[1747849917898,1.42988663,664.31,663.03,0.36894879]
[1747849918100,1.42988663,664.3,663.03,0.36894879]
[1747849918300,2.41701412,664.29,663.03,0.36894879]
[1747849918501,1.42988663,664.28,663.03,0.36894879]
[1747849918698,1.42988663,664.27,663.03,0.36894879]
[1747849919002,1.43030704,664.26,663.03,0.36894879]
[1747849919196,1.43030704,664.25,663.03,0.36894879]
[1747849919397,1.43030704,664.24,663.03,0.36894879]
[1747849919603,1.43030704,664.23,663.03,0.36894879]
[1747849919803,1.43030704,664.22,663.03,0.36894879]
[1747849920001,1.43041136,664.21,663.18,0.36894879]
[1747849920203,1.00169075,664.2,663.18,0.36894879]
[1747849920399,1.00169075,664.19,663.18,0.36894879]
[1747849920603,1.00169075,664.18,663.18,0.36894879]
[1747849920803,1.00169075,664.17,663.18,0.36894879]
[1747849921005,1.00287493,664.16,663.18,0.36894879]
[1747849921209,2.41865403,664.15,663.18,0.36894879]
[1747849921409,1.43160427,664.14,663.18,0.36894879]
[1747849921605,1.43160427,664.13,663.18,0.36894879]
[1747849921810,1.43160427,664.12,663.18,0.36894879]
[1747849922011,1.00287493,664.11,663.18,0.36894879]
[1747849922211,0.98712749,664.15,663.18,0.36894879]
[1747849922410,0.98712749,664.1,663.18,0.36894879]
[1747849922614,1.00297522,664.09,663.16,0.36894879]
[1747849922810,1.00297522,664.08,663.16,0.36894879]
[1747849923008,1.00297522,664.07,663.16,0.36894879]
[1747849923208,1.00297522,664.06,663.16,0.36894879]
[1747849923410,1.00297522,664.05,663.16,0.36894879]
[1747849923612,1.00297522,664.04,663.16,0.36894879]
[1747849923810,1.00297522,664.03,663.16,0.36894879]
[1747849924012,1.00324045,664.02,663.16,0.36894879]
[1747849924213,1.00324045,664.01,663.16,0.36894879]
[1747849924410,1.00324045,664.0,663.16,0.36894879]
[1747849924615,0.98712749,664.04,663.16,0.36894879]
[1747849924616,1.00325936,663.99,663.16,0.36894879]
[1747849924810,1.00346838,663.98,663.16,0.36894879]
[1747849925013,0.98712749,664.0,663.24,0.36894879]
[1747849925217,1.00349085,663.99,663.24,0.36894879]
[1747849925510,1.003485,663.98,663.24,0.36894879]
[1747849925715,0.98712749,664.0,663.24,0.36894879]
[1747849925915,1.0029003,663.99,663.24,0.36894879]
[1747849926112,0.98712749,664.0,663.24,0.36894879]
[1747849926616,0.98712749,664.16,663.24,0.36894879]
[1747849926817,1.00246746,664.15,663.24,0.36894879]
[1747849927015,1.00246746,664.14,663.24,0.36894879]
[1747849927217,1.00246746,664.13,663.24,0.36894879]
[1747849927419,1.00246746,664.12,663.24,0.36894879]
[1747849927618,1.00246746,664.11,663.24,0.36894879]
[1747849927817,1.00246746,664.1,663.24,0.36894879]
[1747849928018,1.00246746,664.09,663.24,0.36894879]
[1747849928219,1.00246746,664.08,663.35,0.36894879]
[1747849928422,1.00246746,664.07,663.35,0.36894879]
[1747849928614,1.00246746,664.06,663.35,0.36894879]
[1747849928923,1.00246746,664.05,663.35,0.36894879]
[1747849929218,1.00246746,664.04,663.35,0.36894879]
[1747849929518,1.98959495,664.03,663.35,0.36894879]
[1747849929719,1.00246746,664.02,663.35,0.36894879]
[1747849929921,1.00246746,664.01,663.35,0.36894879]
[1747849930221,1.00246746,664.0,663.35,0.36894879]
[1747849930419,0.98712749,664.03,663.35,0.36894879]
[1747849930620,1.00301939,664.02,663.35,0.36894879]
[1747849930819,1.00301939,664.01,663.39,0.36894879]
[1747849931020,1.00301939,664.0,663.39,0.36894879]
[1747849931316,1.10744846,664.24,663.39,0.36894879]
[1747849931620,1.43197555,664.23,663.39,0.36894879]
[1747849931919,1.43197555,664.22,663.39,0.36894879]
[1747849932113,1.43197555,664.21,663.39,0.36894879]
[1747849932314,0.42881285,664.2,663.39,0.36894879]
[1747849932518,1.0031627,664.19,663.39,0.36894879]
[1747849932717,1.0031627,664.18,663.39,0.36894879]
[1747849932919,1.43199146,664.17,663.39,0.36894879]
[1747849933117,1.43199146,664.16,663.37,0.36894879]
[1747849933319,1.43199146,664.15,663.37,0.36894879]
[1747849933514,1.43199146,664.14,663.37,0.36894879]
[1747849933716,1.43199146,664.13,663.37,0.36894879]
[1747849933920,1.43199146,664.12,663.37,0.36894879]
[1747849934122,1.43199146,664.11,663.37,0.36894879]
[1747849934320,1.43199146,664.1,663.37,0.36894879]
[1747849934516,1.43199146,664.09,663.37,0.36894879]
[1747849934722,1.43199146,664.08,663.37,0.36894879]
[1747849934921,1.43199146,664.07,663.37,0.36894879]
[1747849935121,1.43199146,664.06,663.37,0.36894879]
[1747849935321,1.43199146,664.05,663.37,0.36894879]
[1747849935522,0.98974183,664.13,663.37,0.36894879]
[1747849935523,1.43160187,664.04,663.37,0.36894879]
[1747849935717,1.43160187,664.03,663.12,0.36894879]
[1747849935917,1.43160187,664.02,663.12,0.36894879]
[1747849936122,1.43160187,664.01,663.12,0.36894879]
[1747849936323,1.43160187,664.0,663.12,0.36894879]
[1747849936622,2.4213437,663.99,663.12,0.36894879]
[1747849936822,1.43160187,663.98,663.12,0.36894879]
[1747849937025,1.43160187,663.97,663.12,0.36894879]
[1747849937223,1.43160187,663.96,663.12,0.36894879]
[1747849937417,1.43128765,663.95,663.12,0.36894879]
[1747849937621,1.43128765,663.94,663.12,0.36894879]
[1747849937821,1.10744846,663.91,663.0,0.26224666]
[1747849938021,1.0031627,663.9,663.0,0.26224666]
[1747849938221,1.0031627,663.89,663.0,0.26224666]
[1747849938422,1.0031627,663.88,663.0,0.26224666]
[1747849938724,1.0031627,663.87,663.0,0.26224666]
[1747849938925,1.0031627,663.86,663.0,0.26224666]
[1747849939122,1.99290453,663.85,663.0,0.26224666]
[1747849939322,1.0031627,663.84,663.0,0.26224666]
[1747849939524,1.0031627,663.83,663.0,0.26224666]
[1747849939720,1.0031627,663.82,663.0,0.26224666]
[1747849939924,1.0031627,663.81,663.0,0.26224666]
[1747849940125,1.0031627,663.8,663.0,0.26224666]
[1747849940325,1.0031627,663.79,663.0,0.26224666]
[1747849940528,1.0031627,663.78,663.0,0.26224666]
[1747849940727,1.0031627,663.77,663.0,0.26224666]
[1747849940927,1.0031627,663.76,663.0,0.26224666]
[1747849941120,1.0031627,663.75,663.0,0.26224666]
[1747849941320,1.0031627,663.74,663.0,0.26224666]
[1747849941521,1.99290453,663.73,663.0,0.26224666]
[1747849941724,0.98974183,663.73,663.0,0.26224666]
[1747849942531,1.00014711,663.72,663.0,0.26224666]
[1747849942725,0.98974183,663.73,663.0,0.26224666]
[1747849942928,1.98986562,663.72,663.0,0.26224666]
[1747849943133,1.00012379,663.71,663.0,0.26224666]
[1747849943332,1.00012379,663.7,662.86,0.36894879]
[1747849943531,1.00012379,663.69,662.86,0.36894879]
[1747849943726,1.00012379,663.68,662.86,0.36894879]
[1747849943926,1.00012379,663.67,662.86,0.36894879]
[1747849944127,1.98986562,663.66,662.86,0.36894879]
[1747849944332,1.00012379,663.65,662.86,0.36894879]
[1747849944533,1.00012379,663.64,662.86,0.36894879]
[1747849944735,1.00012379,663.63,662.86,0.36894879]
[1747849944933,1.00012379,663.62,662.86,0.36894879]
[1747849945235,1.00012379,663.61,662.86,0.36894879]
[1747849945430,0.98974183,663.66,662.86,0.36894879]
[1747849945431,1.00012379,663.6,662.86,0.36894879]
[1747849945635,1.00012379,663.59,662.86,0.36894879]
[1747849945832,0.98974183,663.66,662.86,0.36894879]
[1747849945833,1.00012379,663.58,662.86,0.36894879]
[1747849946028,1.00012379,663.57,662.86,0.36894879]
[1747849946233,1.00012379,663.56,662.78,0.26236627]
[1747849946433,1.00012379,663.55,662.78,0.26236627]
[1747849946632,0.98974183,663.58,662.78,0.26236627]
[1747849946836,0.99770075,663.57,662.48,0.36894879]
[1747849947034,0.99770075,663.56,662.48,0.36894879]
[1747849947241,0.99770075,663.55,662.48,0.36894879]
[1747849947435,1.98744258,663.54,662.48,0.36894879]
[1747849947632,0.99770075,663.53,662.48,0.36894879]
[1747849947834,0.99770075,663.52,662.48,0.36894879]
[1747849948035,0.98974183,663.54,662.49,0.26244245]
[1747849949138,1.10744846,663.7,662.49,0.26244245]
[1747849949334,0.9968287,663.69,662.49,0.26244245]
[1747849949539,0.9968287,663.68,662.34,0.36894879]
[1747849949840,0.9968287,663.67,662.34,0.36894879]
[1747849950036,0.9968287,663.66,662.34,0.36894879]
[1747849950237,0.9968287,663.65,662.34,0.36894879]
[1747849950437,0.9968287,663.64,662.34,0.36894879]
[1747849950635,0.9968287,663.63,662.34,0.36894879]
[1747849950840,1.10744846,663.87,662.35,0.26241771]
[1747849951041,2.40979787,663.86,662.35,0.26241771]
[1747849951334,1.42194205,663.85,662.35,0.26241771]
[1747849951539,0.99626062,663.84,662.35,0.26241771]